lending/lending_fUSD_20241115
["ID","MTS","AMOUNT","RATE_DAILY","PERIOD"]
[342284022,1731694240774,-500.0,9.791e-05,2]
[342284023,1731694240783,-500.0,9.791e-05,2]
[342284024,1731694240793,-500.0,9.791e-05,2]
[342284025,1731694240803,-500.0,9.791e-05,2]
[342284026,1731694240812,-500.0,9.791e-05,2]
[342284027,1731694240821,-212.10041521,9.791e-05,2]
[342284028,1731694240833,-287.89958479,9.791e-05,2]
[342284029,1731694240842,-500.0,9.791e-05,2]
[342284030,1731694240851,-538.5,9.791e-05,2]
[342284031,1731694240860,-52.10041521,9.791e-05,2]
[342284032,1731694240871,-447.89958479,9.791e-05,2]
[342284033,1731694240881,-500.0,9.791e-05,2]
[342284034,1731694240891,-478.20676721,9.791e-05,2]
[342284035,1731694240908,-69.15465902,9.791e-05,2]
[342284036,1731694240917,-500.0,9.791e-05,2]
[342284037,1731694240927,-500.0,9.791e-05,2]
[342284038,1731694240936,-500.0,9.791e-05,2]
[342284039,1731694240945,-500.0,9.791e-05,2]
[342284040,1731694240957,-500.0,9.791e-05,2]
[342284041,1731694240966,-500.0,9.791e-05,2]
[342284042,1731694240976,-500.0,9.791e-05,2]
[342284043,1731694240985,-500.0,9.791e-05,2]
[342284044,1731694240994,-500.0,9.791e-05,2]
[342284045,1731694241004,-579.71,9.791e-05,2]
[342284046,1731694241013,-500.0,9.791e-05,2]
[342284047,1731694241025,-500.0,9.791e-05,2]
[342284048,1731694241036,-500.0,9.791e-05,2]
[342284049,1731694241046,-500.0,9.791e-05,2]
[342284050,1731694241056,-500.0,9.791e-05,2]
[342284051,1731694241065,-958.58,9.791e-05,2]
[342284052,1731694241074,-500.0,9.791e-05,2]
[342284053,1731694241083,-1557.57,9.791e-05,2]
[342284054,1731694241093,-500.0,9.791e-05,2]
[342284055,1731694241102,-500.0,9.791e-05,2]
[342284056,1731694241111,-634.89,9.791e-05,2]
[342284057,1731694241121,-176.09526182,9.791e-05,2]
[342284058,1731694241134,-323.90473818,9.791e-05,2]
[342284059,1731694241143,-500.0,9.791e-05,2]
[342284060,1731694241152,-500.0,9.791e-05,2]
[342284061,1731694241161,-500.0,9.791e-05,2]
[342284062,1731694241171,-572.16,9.791e-05,2]
[342284063,1731694241180,-500.0,9.791e-05,2]
[342284064,1731694241189,-500.0,9.791e-05,2]
[342284065,1731694241198,-250.0,9.791e-05,2]
[342284066,1731694241207,-500.0,9.791e-05,2]
[342284067,1731694241217,-500.0,9.791e-05,2]
[342284068,1731694241226,-500.0,9.791e-05,2]
[342284069,1731694241236,-2320.87,9.791e-05,2]
[342284070,1731694241245,-500.0,9.791e-05,2]
[342284071,1731694241254,-500.0,9.791e-05,2]
[342284072,1731694241266,-500.0,9.791e-05,2]
[342284073,1731694241275,-500.0,9.791e-05,2]
[342284074,1731694241285,-500.0,9.791e-05,2]
[342284075,1731694241294,-500.0,9.791e-05,2]
[342284076,1731694241304,-500.0,9.791e-05,2]
[342284077,1731694241313,-500.0,9.791e-05,2]
[342284078,1731694241322,-500.0,9.791e-05,2]
[342284079,1731694241331,-500.0,9.791e-05,2]
[342284080,1731694241340,-500.0,9.791e-05,2]
[342284081,1731694241349,-500.0,9.791e-05,2]
[342284082,1731694241359,-500.0,9.791e-05,2]
[342284083,1731694241368,-500.0,9.791e-05,2]
[342284084,1731694241377,-500.0,9.791e-05,2]
[342284085,1731694241388,-500.0,9.791e-05,2]
[342284086,1731694241397,-500.0,9.791e-05,2]
[342284087,1731694241406,-500.0,9.791e-05,2]
[342284088,1731694241415,-655.31,9.791e-05,2]
[342284089,1731694241425,-500.0,9.791e-05,2]
[342284090,1731694241435,-500.0,9.791e-05,2]
[342284091,1731694241444,-500.0,9.791e-05,2]
[342284092,1731694241453,-500.0,9.791e-05,2]
[342284093,1731694241462,-500.0,9.791e-05,2]
[342284094,1731694241471,-500.0,9.791e-05,2]
[342284095,1731694241480,-866.55,9.791e-05,2]
[342284096,1731694241489,-500.0,9.791e-05,2]
[342284097,1731694241499,-513.45,9.791e-05,2]
[342284098,1731694241507,-500.0,9.791e-05,2]
[342284099,1731694241518,-500.0,9.791e-05,2]
[342284100,1731694241527,-500.0,9.791e-05,2]
[342284101,1731694241536,-500.0,9.791e-05,2]
[342284102,1731694241545,-500.0,9.791e-05,2]
[342284103,1731694241555,-500.0,9.791e-05,2]
[342284104,1731694241564,-500.0,9.791e-05,2]
[342284105,1731694241573,-500.0,9.791e-05,2]
[342284106,1731694241583,-1168.79,9.791e-05,2]
[342284107,1731694241593,-500.0,9.791e-05,2]
[342284108,1731694241602,-500.0,9.791e-05,2]
[342284109,1731694241611,-500.0,9.791e-05,2]
[342284110,1731694241620,-500.0,9.791e-05,2]
[342284111,1731694241630,-500.0,9.791e-05,2]
[342284112,1731694241639,-500.0,9.791e-05,2]
[342284113,1731694241648,-500.0,9.791e-05,2]
[342284114,1731694241657,-500.0,9.791e-05,2]
[342284115,1731694241666,-500.0,9.791e-05,2]
[342284116,1731694241675,-500.0,9.791e-05,2]
[342284117,1731694241684,-500.0,9.791e-05,2]
[342284118,1731694241693,-500.0,9.791e-05,2]
[342284119,1731694241702,-333.36148682,9.791e-05,2]
[342284120,1731694241733,-166.63851318,9.791e-05,2]
[342284121,1731694241742,-500.0,9.791e-05,2]
[342284122,1731694242072,-539.56,9.791e-05,2]
[342284123,1731694242081,-713.61,9.791e-05,2]
[342284124,1731694242091,-500.0,9.791e-05,2]
[342284125,1731694242100,-500.0,9.791e-05,2]
[342284126,1731694242110,-500.0,9.791e-05,2]
[342284127,1731694242120,-925.48,9.791e-05,2]
[342284128,1731694242130,-500.0,9.791e-05,2]
[342284129,1731694242140,-500.0,9.791e-05,2]
[342284130,1731694242149,-500.0,9.791e-05,2]
[342284131,1731694242159,-500.0,9.791e-05,2]
[342284132,1731694242169,-500.0,9.791e-05,2]
[342284133,1731694242178,-500.0,9.791e-05,2]
[342284134,1731694242188,-500.0,9.791e-05,2]
[342284135,1731694242197,-500.0,9.791e-05,2]
[342284136,1731694242207,-500.0,9.791e-05,2]
[342284137,1731694242216,-512.54,9.791e-05,2]
[342284138,1731694242225,-500.0,9.791e-05,2]
[342284139,1731694242235,-500.0,9.791e-05,2]
[342284140,1731694242244,-500.0,9.791e-05,2]
[342284141,1731694242253,-514.14,9.791e-05,2]
[342284142,1731694242262,-500.0,9.791e-05,2]
[342284143,1731694242274,-500.0,9.791e-05,2]
[342284144,1731694242284,-500.0,9.791e-05,2]
[342284145,1731694242293,-500.0,9.791e-05,2]
[342284146,1731694242302,-500.0,9.791e-05,2]
[342284147,1731694242312,-500.0,9.791e-05,2]
[342284148,1731694242322,-500.0,9.791e-05,2]
[342284149,1731694242331,-500.0,9.791e-05,2]
[342284150,1731694242340,-500.0,9.791e-05,2]
[342284151,1731694242350,-500.0,9.791e-05,2]
[342284152,1731694242359,-500.0,9.791e-05,2]
[342284153,1731694242369,-500.0,9.791e-05,2]
[342284154,1731694242379,-653.18,9.791e-05,2]
[342284155,1731694242390,-500.0,9.791e-05,2]
[342284156,1731694242400,-500.0,9.791e-05,2]
[342284157,1731694242410,-545.36,9.791e-05,2]
[342284158,1731694242420,-500.0,9.791e-05,2]
[342284159,1731694242430,-500.0,9.791e-05,2]
[342284160,1731694242439,-500.0,9.791e-05,2]
[342284161,1731694242449,-500.0,9.791e-05,2]
[342284162,1731694242459,-877.77,9.791e-05,2]
[342284163,1731694242468,-713.07,9.791e-05,2]
[342284164,1731694242478,-500.0,9.791e-05,2]
[342284165,1731694242487,-944.57,9.791e-05,2]
[342284166,1731694242496,-500.0,9.791e-05,2]
[342284167,1731694242505,-500.0,9.791e-05,2]
[342284168,1731694242517,-500.0,9.791e-05,2]
[342284169,1731694242527,-848.75,9.791e-05,2]
[342284170,1731694242536,-500.0,9.791e-05,2]
[342284171,1731694242546,-500.0,9.791e-05,2]
[342284172,1731694242555,-500.0,9.791e-05,2]
[342284173,1731694242565,-723.22,9.791e-05,2]
[342284174,1731694242575,-564.68608362,9.791e-05,2]
[342284175,1731694242584,-500.0,9.791e-05,2]
[342284176,1731694242594,-500.0,9.791e-05,2]
[342284177,1731694242604,-500.0,9.791e-05,2]
[342284180,1731694242614,-500.0,9.791e-05,2]
[342284182,1731694242623,-500.0,9.791e-05,2]
[342284184,1731694242633,-1607.14,9.791e-05,2]
[342284185,1731694242643,-661.63,9.791e-05,2]
[342284186,1731694242652,-500.0,9.791e-05,2]
[342284187,1731694242661,-500.0,9.791e-05,2]
[342284188,1731694242671,-500.0,9.791e-05,2]
[342284189,1731694242681,-500.0,9.791e-05,2]
[342284190,1731694242690,-500.0,9.791e-05,2]
[342284191,1731694242699,-981.13,9.791e-05,2]
[342284193,1731694242709,-846.22,9.791e-05,2]
[342284195,1731694242718,-500.0,9.791e-05,2]
[342284196,1731694242728,-500.0,9.791e-05,2]
[342284197,1731694242737,-1443.55,9.791e-05,2]
[342284198,1731694242747,-500.0,9.791e-05,2]
[342284199,1731694242756,-500.0,9.791e-05,2]
[342284200,1731694242769,-500.0,9.791e-05,2]
[342284201,1731694242779,-510.69,9.791e-05,2]
[342284202,1731694242789,-500.0,9.791e-05,2]
[342284203,1731694242799,-590.4,9.791e-05,2]
[342284204,1731694242809,-500.0,9.791e-05,2]
[342284205,1731694242818,-510.98,9.791e-05,2]
[342284206,1731694242828,-822.53,9.791e-05,2]
[342284207,1731694242837,-364.68763302,9.791e-05,2]
[342284208,1731694242847,-500.0,9.791e-05,2]
[342284209,1731694242856,-500.0,9.791e-05,2]
[342284210,1731694242866,-500.0,9.791e-05,2]
[342284211,1731694242875,-500.0,9.791e-05,2]
[342284212,1731694242885,-569.69,9.791e-05,2]
[342284213,1731694242894,-500.0,9.791e-05,2]
[342284214,1731694242903,-1150.64,9.791e-05,2]
[342284215,1731694242912,-500.0,9.791e-05,2]
[342284216,1731694242922,-500.0,9.791e-05,2]
[342284217,1731694242932,-500.0,9.791e-05,2]
[342284218,1731694242942,-500.0,9.791e-05,2]
[342284219,1731694242954,-500.0,9.791e-05,2]
[342284220,1731694242966,-1041.05,9.791e-05,2]
[342284221,1731694242975,-500.0,9.791e-05,2]
[342284222,1731694242985,-1621.69,9.791e-05,2]
[342284223,1731694242995,-500.0,9.791e-05,2]
[342284224,1731694243004,-500.0,9.791e-05,2]
[342284225,1731694243015,-500.0,9.791e-05,2]
[342284226,1731694243024,-317.38179519,9.791e-05,2]
[342284227,1731694243036,-500.0,9.791e-05,2]
[342284228,1731694243046,-500.0,9.791e-05,2]
[342284229,1731694243055,-570.65,9.791e-05,2]
[342284230,1731694243064,-500.0,9.791e-05,2]
[342284231,1731694243073,-500.0,9.791e-05,2]
[342284232,1731694243082,-500.0,9.791e-05,2]
[342284233,1731694243092,-185.98188618,9.791e-05,2]
[342284234,1731694243101,-500.0,9.791e-05,2]
[342284235,1731694243111,-537.66,9.791e-05,2]
[342284236,1731694243120,-615.49,9.791e-05,2]
[342284238,1731694243130,-513.01,9.791e-05,2]
[342284239,1731694243139,-927.5,9.791e-05,2]
[342284240,1731694243148,-500.0,9.791e-05,2]
[342284242,1731694243157,-924.06,9.791e-05,2]
[342284244,1731694243166,-500.0,9.791e-05,2]
[342284246,1731694243175,-500.0,9.791e-05,2]
[342284248,1731694243184,-943.65,9.791e-05,2]
[342284250,1731694243193,-500.0,9.791e-05,2]
[342284252,1731694243202,-500.0,9.791e-05,2]
[342284253,1731694243211,-500.0,9.791e-05,2]
[342284255,1731694243220,-500.0,9.791e-05,2]
[342284257,1731694243229,-500.0,9.791e-05,2]
[342284259,1731694243238,-529.99,9.791e-05,2]
[342284261,1731694243247,-516.86,9.791e-05,2]
[342284263,1731694243256,-500.0,9.791e-05,2]
[342284265,1731694243266,-500.0,9.791e-05,2]
[342284267,1731694243276,-500.0,9.791e-05,2]
[342284269,1731694243285,-213.14659755,9.791e-05,2]
[342284271,1731694243294,-526.46,9.791e-05,2]
[342284273,1731694243304,-723.07,9.791e-05,2]
[342284276,1731694243314,-500.0,9.791e-05,2]
[342284277,1731694243323,-500.0,9.791e-05,2]
[342284279,1731694243333,-500.0,9.791e-05,2]
[342284281,1731694243342,-500.0,9.791e-05,2]
[342284283,1731694243352,-1384.55,9.791e-05,2]
[342284285,1731694243361,-500.0,9.791e-05,2]
[342284287,1731694243370,-500.0,9.791e-05,2]
[342284289,1731694243379,-500.0,9.791e-05,2]
[342284291,1731694243388,-626.1,9.791e-05,2]
[342284293,1731694243398,-500.0,9.791e-05,2]
[342284295,1731694243407,-500.0,9.791e-05,2]
[342284297,1731694243417,-500.0,9.791e-05,2]
[342284299,1731694243426,-500.0,9.791e-05,2]
[342284301,1731694243435,-661.01,9.791e-05,2]
[342284303,1731694243444,-500.0,9.791e-05,2]
[342284305,1731694243455,-500.0,9.791e-05,2]
[342284307,1731694243465,-500.0,9.791e-05,2]
[342284309,1731694243474,-500.0,9.791e-05,2]
[342284311,1731694243484,-1238.12,9.791e-05,2]
[342284313,1731694243494,-185.38520207,9.791e-05,2]
[342284315,1731694243503,-592.83418156,9.791e-05,2]
[342284317,1731694243512,-500.0,9.791e-05,2]
[342284319,1731694243523,-500.0,9.791e-05,2]
[342284321,1731694243532,-1166.81,9.791e-05,2]
[342284322,1731694243542,-500.0,9.791e-05,2]
[342284323,1731694243553,-500.0,9.791e-05,2]
[342284324,1731694243562,-500.0,9.791e-05,2]
[342284325,1731694243571,-500.0,9.791e-05,2]
[342284326,1731694243580,-500.0,9.791e-05,2]
[342284327,1731694243589,-500.0,9.791e-05,2]
[342284328,1731694243598,-1115.63,9.791e-05,2]
[342284329,1731694243607,-609.85,9.791e-05,2]
[342284330,1731694243616,-870.93,9.791e-05,2]
[342284331,1731694243626,-894.3,9.791e-05,2]
[342284332,1731694243635,-628.6,9.791e-05,2]
[342284333,1731694243644,-154.84643643,9.791e-05,2]
[342284334,1731694243653,-1290.18,9.791e-05,2]
[342284335,1731694243662,-500.0,9.791e-05,2]
[342284336,1731694243671,-641.07,9.791e-05,2]
[342284337,1731694243680,-500.0,9.791e-05,2]
[342284338,1731694243690,-500.0,9.791e-05,2]
[342284339,1731694243699,-687.53,9.791e-05,2]
[342284340,1731694243708,-500.0,9.791e-05,2]
[342284341,1731694243717,-2092.61,9.791e-05,2]
[342284342,1731694243727,-592.92,9.791e-05,2]
[342284343,1731694243736,-500.0,9.791e-05,2]
[342284344,1731694243745,-341.73593424,9.791e-05,2]
[342284345,1731694243754,-500.0,9.791e-05,2]
[342284346,1731694243764,-500.0,9.791e-05,2]
[342284347,1731694243774,-2064.55,9.791e-05,2]
[342284348,1731694243783,-500.0,9.791e-05,2]
[342284349,1731694243792,-500.0,9.791e-05,2]
[342284350,1731694243801,-500.0,9.791e-05,2]
[342284351,1731694243811,-500.0,9.791e-05,2]
[342284352,1731694243820,-4793.06,9.791e-05,2]
[342284353,1731694243829,-500.0,9.791e-05,2]
[342284354,1731694243838,-500.0,9.791e-05,2]
[342284355,1731694243847,-500.0,9.791e-05,2]
[342284356,1731694243856,-500.0,9.791e-05,2]
[342284357,1731694243866,-500.0,9.791e-05,2]
[342284358,1731694243875,-2429.02,9.791e-05,2]
[342284359,1731694243886,-575.4,9.791e-05,2]
[342284360,1731694243896,-500.0,9.791e-05,2]
[342284361,1731694243906,-500.0,9.791e-05,2]
[342284362,1731694243915,-5513.04,9.791e-05,2]
[342284363,1731694243924,-500.0,9.791e-05,2]
[342284364,1731694243933,-500.0,9.791e-05,2]
[342284365,1731694243943,-996.71,9.791e-05,2]
[342284366,1731694243953,-500.0,9.791e-05,2]
[342284367,1731694243966,-500.0,9.791e-05,2]
[342284368,1731694243975,-724.49,9.791e-05,2]
[342284369,1731694243984,-500.0,9.791e-05,2]
[342284370,1731694243993,-500.0,9.791e-05,2]
[342284371,1731694244006,-500.0,9.791e-05,2]
[342284372,1731694244017,-500.0,9.791e-05,2]
[342284373,1731694244027,-500.0,9.791e-05,2]
[342284374,1731694244037,-500.0,9.791e-05,2]
[342284375,1731694244046,-500.0,9.791e-05,2]
[342284376,1731694244055,-6365.68,9.791e-05,2]
[342284377,1731694244064,-500.0,9.791e-05,2]
[342284378,1731694244073,-726.77,9.791e-05,2]
[342284379,1731694244083,-1930.36,9.791e-05,2]
[342284380,1731694244092,-608.92,9.791e-05,2]
[342284381,1731694244101,-500.0,9.791e-05,2]
[342284382,1731694244110,-500.0,9.791e-05,2]
[342284383,1731694244119,-500.0,9.791e-05,2]
[342284384,1731694244128,-2966.56,9.791e-05,2]
[342284385,1731694244138,-661.07,9.791e-05,2]
[342284386,1731694244147,-500.0,9.791e-05,2]
[342284387,1731694244156,-732.38,9.791e-05,2]
[342284388,1731694244165,-500.0,9.791e-05,2]
[342284389,1731694244174,-920.5,9.791e-05,2]
[342284390,1731694244183,-500.0,9.791e-05,2]
[342284391,1731694244193,-742.47,9.791e-05,2]
[342284392,1731694244202,-500.0,9.791e-05,2]
[342284393,1731694244211,-215.02279146,9.791e-05,2]
[342284394,1731694244220,-500.0,9.791e-05,2]
[342284395,1731694244229,-1356.87,9.791e-05,2]
[342284396,1731694244238,-500.0,9.791e-05,2]
[342284397,1731694244247,-500.0,9.791e-05,2]
[342284398,1731694244256,-613.3,9.791e-05,2]
[342284399,1731694244265,-5604.37,9.791e-05,2]
[342284400,1731694244278,-566.14,9.791e-05,2]
[342284401,1731694244287,-2544.5,9.791e-05,2]
[342284402,1731694244296,-684.01,9.791e-05,2]
[342284403,1731694244305,-500.0,9.791e-05,2]
[342284404,1731694244314,-500.0,9.791e-05,2]
[342284405,1731694244323,-500.0,9.791e-05,2]
[342284406,1731694244333,-500.0,9.791e-05,2]
[342284407,1731694244342,-27914.34,9.791e-05,2]
[342284408,1731694244351,-500.0,9.791e-05,2]
[342284409,1731694244360,-3048.91,9.791e-05,2]
[342284410,1731694244369,-675.99,9.791e-05,2]
[342284411,1731694244378,-500.0,9.791e-05,2]
[342284412,1731694244388,-1903.08,9.791e-05,2]
[342284413,1731694244397,-4136.21,9.791e-05,2]
[342284414,1731694244406,-1287.98,9.791e-05,2]
[342284415,1731694244416,-500.0,9.791e-05,2]
[342284416,1731694244426,-500.0,9.791e-05,2]
[342284417,1731694244435,-500.0,9.791e-05,2]
[342284418,1731694244444,-500.0,9.791e-05,2]
[342284419,1731694244454,-500.0,9.791e-05,2]
[342284420,1731694244464,-858.99,9.791e-05,2]
[342284421,1731694244474,-1256.42,9.791e-05,2]
[342284422,1731694244483,-500.0,9.791e-05,2]
[342284423,1731694244492,-562.98,9.791e-05,2]
[342284424,1731694244501,-500.0,9.791e-05,2]
[342284425,1731694244510,-544.47,9.791e-05,2]
[342284426,1731694244521,-1510.02,9.791e-05,2]
[342284427,1731694244531,-500.0,9.791e-05,2]
[342284428,1731694244540,-500.0,9.791e-05,2]
[342284429,1731694244549,-2847.51,9.791e-05,2]
[342284430,1731694244558,-500.0,9.791e-05,2]
[342284431,1731694244567,-500.0,9.791e-05,2]
[342284432,1731694244576,-1580.95,9.791e-05,2]
[342284433,1731694244585,-973.26,9.791e-05,2]
[342284434,1731694244594,-575.21,9.791e-05,2]
[342284435,1731694244602,-500.0,9.791e-05,2]
[342284436,1731694244611,-4678.34,9.791e-05,2]
[342284437,1731694244620,-500.0,9.791e-05,2]
[342284438,1731694244629,-866.1,9.791e-05,2]
[342284439,1731694244639,-578.73891105,9.791e-05,2]
[342284440,1731694244648,-500.0,9.791e-05,2]
[342284441,1731694244657,-500.0,9.791e-05,2]
[342284442,1731694244667,-608.09,9.791e-05,2]
[342284443,1731694244676,-500.0,9.791e-05,2]
[342284444,1731694244686,-945.74,9.791e-05,2]
[342284445,1731694244695,-2472.18,9.791e-05,2]
[342284446,1731694244704,-500.0,9.791e-05,2]
[342284447,1731694244714,-500.0,9.791e-05,2]
[342284448,1731694244723,-500.0,9.791e-05,2]
[342284449,1731694244732,-500.0,9.791e-05,2]
[342284450,1731694244741,-500.0,9.791e-05,2]
[342284451,1731694244751,-775.81,9.791e-05,2]
[342284452,1731694244760,-1087.19,9.791e-05,2]
[342284453,1731694244770,-500.0,9.791e-05,2]
[342284454,1731694244779,-617.16,9.791e-05,2]
[342284455,1731694244789,-500.0,9.791e-05,2]
[342284456,1731694244799,-500.0,9.791e-05,2]
[342284457,1731694244807,-543.87,9.791e-05,2]
[342284458,1731694244816,-1107.14,9.791e-05,2]
[342284459,1731694244826,-500.0,9.791e-05,2]
[342284460,1731694244835,-500.0,9.791e-05,2]
[342284461,1731694244844,-500.0,9.791e-05,2]
[342284462,1731694244853,-1099.06,9.791e-05,2]
[342284463,1731694244862,-500.0,9.791e-05,2]
[342284464,1731694244871,-500.0,9.791e-05,2]
[342284465,1731694244880,-1322.36,9.791e-05,2]
[342284466,1731694244891,-500.0,9.791e-05,2]
[342284467,1731694244900,-500.0,9.791e-05,2]
[342284468,1731694244909,-500.0,9.791e-05,2]
[342284469,1731694244930,-500.0,9.791e-05,2]
[342284470,1731694244940,-500.0,9.791e-05,2]
[342284471,1731694244950,-500.0,9.791e-05,2]
[342284472,1731694244965,-500.0,9.791e-05,2]
[342284473,1731694244974,-500.0,9.791e-05,2]
[342284474,1731694244984,-965.19,9.791e-05,2]
[342284475,1731694244994,-500.0,9.791e-05,2]
[342284476,1731694245005,-500.0,9.791e-05,2]
[342284477,1731694245015,-1552.64,9.791e-05,2]
[342284478,1731694245028,-500.0,9.791e-05,2]
[342284479,1731694245038,-500.0,9.791e-05,2]
[342284480,1731694245048,-500.0,9.791e-05,2]
[342284481,1731694245058,-500.0,9.791e-05,2]
[342284482,1731694245067,-1068.7,9.791e-05,2]
[342284483,1731694245077,-500.0,9.791e-05,2]
[342284484,1731694245086,-659.46,9.791e-05,2]
[342284485,1731694245096,-500.0,9.791e-05,2]
[342284486,1731694245105,-556.68,9.791e-05,2]
[342284487,1731694245114,-500.0,9.791e-05,2]
[342284488,1731694245124,-736.05,9.791e-05,2]
[342284489,1731694245133,-500.0,9.791e-05,2]
[342284490,1731694245142,-500.0,9.791e-05,2]
[342284491,1731694245152,-509.8798361,9.791e-05,2]
[342284492,1731694245162,-3058.28,9.791e-05,2]
[342284493,1731694245172,-500.0,9.791e-05,2]
[342284494,1731694245181,-500.0,9.791e-05,2]
[342284495,1731694245191,-500.0,9.791e-05,2]
[342284496,1731694245201,-500.0,9.791e-05,2]
[342284497,1731694245212,-500.0,9.791e-05,2]
[342284498,1731694245221,-500.0,9.791e-05,2]
[342284499,1731694245230,-500.0,9.791e-05,2]
[342284500,1731694245240,-4078.51,9.791e-05,2]
[342284501,1731694245249,-500.0,9.791e-05,2]
[342284502,1731694245259,-500.0,9.791e-05,2]
[342284503,1731694245269,-500.0,9.791e-05,2]
[342284504,1731694245279,-500.0,9.791e-05,2]
[342284505,1731694245288,-534.78,9.791e-05,2]
[342284506,1731694245298,-500.0,9.791e-05,2]
[342284507,1731694245308,-500.0,9.791e-05,2]
[342284508,1731694245318,-500.0,9.791e-05,2]
[342284509,1731694245328,-836.25,9.791e-05,2]
[342284510,1731694245337,-13327.05,9.791e-05,2]
[342284511,1731694245347,-1350.58,9.791e-05,2]
[342284512,1731694245356,-586.79,9.791e-05,2]
[342284513,1731694245366,-554.64,9.791e-05,2]
[342284514,1731694245375,-983.62,9.791e-05,2]
[342284515,1731694245384,-530.08736183,9.791e-05,2]
[342284516,1731694245394,-500.0,9.791e-05,2]
[342284517,1731694245404,-4119.01,9.791e-05,2]
[342284518,1731694245414,-1186.42,9.791e-05,2]
[342284519,1731694245424,-500.0,9.791e-05,2]
[342284520,1731694245434,-346.89368523,9.791e-05,2]
[342284521,1731694245443,-500.0,9.791e-05,2]
[342284522,1731694245453,-302.62686399,9.791e-05,2]
[342284523,1731694245462,-500.0,9.791e-05,2]
[342284524,1731694245472,-640.9,9.791e-05,2]
[342284525,1731694245482,-500.0,9.791e-05,2]
[342284526,1731694245491,-500.0,9.791e-05,2]
[342284527,1731694245501,-500.0,9.791e-05,2]
[342284528,1731694245511,-1268.43,9.791e-05,2]
[342284529,1731694245523,-500.0,9.791e-05,2]
[342284530,1731694245533,-500.0,9.791e-05,2]
[342284531,1731694245542,-500.0,9.791e-05,2]
[342284532,1731694245552,-500.0,9.791e-05,2]
[342284533,1731694245561,-500.0,9.791e-05,2]
[342284534,1731694245571,-500.0,9.791e-05,2]
[342284535,1731694245580,-1482.6,9.791e-05,2]
[342284536,1731694245589,-500.0,9.791e-05,2]
[342284537,1731694245599,-855.59,9.791e-05,2]
[342284538,1731694245608,-500.0,9.791e-05,2]
[342284539,1731694245618,-500.0,9.791e-05,2]
[342284540,1731694245628,-500.0,9.791e-05,2]
[342284541,1731694245637,-500.0,9.791e-05,2]
[342284542,1731694245647,-1020.8,9.791e-05,2]
[342284543,1731694245656,-500.0,9.791e-05,2]
[342284544,1731694245666,-500.0,9.791e-05,2]
[342284545,1731694245676,-500.0,9.791e-05,2]
[342284546,1731694245685,-1382.63,9.791e-05,2]
[342284547,1731694245695,-500.0,9.791e-05,2]
[342284548,1731694245704,-1292.91,9.791e-05,2]
[342284549,1731694245714,-500.0,9.791e-05,2]
[342284550,1731694245724,-500.0,9.791e-05,2]
[342284551,1731694245733,-1931.56,9.791e-05,2]
[342284552,1731694245743,-500.0,9.791e-05,2]
[342284553,1731694245753,-500.0,9.791e-05,2]
[342284554,1731694245762,-500.0,9.791e-05,2]
[342284555,1731694245775,-663.56,9.791e-05,2]
[342284556,1731694245785,-434.49380564,9.791e-05,2]
[342284557,1731694245795,-500.0,9.791e-05,2]
[342284558,1731694245804,-500.0,9.791e-05,2]
[342284559,1731694245814,-419.16376268,9.791e-05,2]
[342284560,1731694245824,-1470.93,9.791e-05,2]
[342284561,1731694245834,-500.0,9.791e-05,2]
[342284562,1731694245843,-500.0,9.791e-05,2]
[342284563,1731694245853,-681.85,9.791e-05,2]
[342284564,1731694245877,-3295.15,9.791e-05,2]
[342284565,1731694245894,-2363.83,9.791e-05,2]
[342284566,1731694245908,-500.0,9.791e-05,2]
[342284567,1731694245920,-554.82,9.791e-05,2]
[342284568,1731694245933,-500.0,9.791e-05,2]